[Event "*** Titled Tuesday Blitz"]
[Site "Chess.com"]
[Date "2021.02.02"]
[Round "6"]
[White "ohajek96"]
[Black "noblerone"]
[Result "0-1"]
[WhiteElo "2248"]
[BlackElo "2413"]
[TimeControl "180+1"]
[EndTime "11:09:08 PST"]
[Termination "noblerone won by resignation"]

1. e4 {[%clk 0:03:00.9]} 1... c5 {[%clk 0:02:58.4]} 2. Nf3 {[%clk 0:03:00.4]}
2... e6 {[%clk 0:02:58.8]} 3. d4 {[%clk 0:02:59.9]} 3... cxd4 {[%clk 0:02:59.7]}
4. Nxd4 {[%clk 0:03:00.4]} 4... Qb6 {[%clk 0:03:00.2]} 5. Nb3 {[%clk 0:02:53.1]}
5... Qc7 {[%clk 0:02:59.9]} 6. Nc3 {[%clk 0:02:50.2]} 6... a6 {[%clk 0:02:58.7]}
7. g3 {[%clk 0:02:50]} 7... b5 {[%clk 0:02:56.5]} 8. Bg2 {[%clk 0:02:47.7]} 8...
Bb7 {[%clk 0:02:56.8]} 9. O-O {[%clk 0:02:45.6]} 9... d6 {[%clk 0:02:44.9]} 10.
Re1 {[%clk 0:02:42.9]} 10... Nf6 {[%clk 0:02:42.4]} 11. Bg5 {[%clk 0:02:31.1]}
11... Be7 {[%clk 0:02:24.7]} 12. Qe2 {[%clk 0:01:54.6]} 12... O-O {[%clk
0:02:17.1]} 13. a3 {[%clk 0:01:50.1]} 13... Nc6 {[%clk 0:02:11.6]} 14. Rad1
{[%clk 0:01:41.6]} 14... Ne5 {[%clk 0:02:06.2]} 15. Bxf6 {[%clk 0:01:29.2]}
15... Bxf6 {[%clk 0:02:02.2]} 16. Nd2 {[%clk 0:01:20.2]} 16... Rac8 {[%clk
0:01:52.8]} 17. Kh1 {[%clk 0:01:13.5]} 17... Rfd8 {[%clk 0:01:50.1]} 18. f4
{[%clk 0:01:09.8]} 18... Nc4 {[%clk 0:01:44.4]} 19. Nxc4 {[%clk 0:01:09]} 19...
bxc4 {[%clk 0:01:33.1]} 20. Qe3 {[%clk 0:01:06.6]} 20... h6 {[%clk 0:01:27.5]}
21. h4 {[%clk 0:00:48.6]} 21... Rb8 {[%clk 0:01:24.1]} 22. e5 {[%clk 0:00:47.5]}
22... Be7 {[%clk 0:01:11.2]} 23. exd6 {[%clk 0:00:44.8]} 23... Bxd6 {[%clk
0:00:59.6]} 24. Ne4 {[%clk 0:00:41.6]} 24... Bf8 {[%clk 0:00:52.4]} 25. b4
{[%clk 0:00:24.5]} 25... cxb3 {[%clk 0:00:51.9]} 26. cxb3 {[%clk 0:00:24.5]}
26... Bxa3 {[%clk 0:00:50.5]} 27. Rd3 {[%clk 0:00:13.5]} 27... Rxd3 {[%clk
0:00:44.9]} 28. Qxd3 {[%clk 0:00:14.4]} 28... Rd8 {[%clk 0:00:42.1]} 29. Qf3
{[%clk 0:00:13.9]} 29... Bd5 {[%clk 0:00:39.1]} 30. Qe3 {[%clk 0:00:12.2]} 30...
Bb4 {[%clk 0:00:38]} 31. Rc1 {[%clk 0:00:11.3]} 31... Qe7 {[%clk 0:00:29.9]} 32.
Qd4 {[%clk 0:00:07.1]} 32... a5 {[%clk 0:00:28.3]} 33. Qe3 {[%clk 0:00:06.6]}
33... Qf8 {[%clk 0:00:23.8]} 34. Kh2 {[%clk 0:00:06.7]} 34... Rc8 {[%clk
0:00:23.6]} 35. Rxc8 {[%clk 0:00:06]} 35... Qxc8 {[%clk 0:00:24.5]} 36. Nd2
{[%clk 0:00:04.5]} 36... Qc2 {[%clk 0:00:22.2]} 37. Nf3 {[%clk 0:00:03.1]} 37...
Bc5 {[%clk 0:00:19.1]} 38. Qe1 {[%clk 0:00:02.1]} 38... Bxf3 {[%clk 0:00:18.3]}
39. Qf1 {[%clk 0:00:01.7]} 39... Qxg2+ {[%clk 0:00:18.3]} 40. Qxg2 {[%clk
0:00:02.6]} 40... Bxg2 {[%clk 0:00:19.2]} 41. Kxg2 {[%clk 0:00:03]} 41... Kf8
{[%clk 0:00:20.1]} 42. Kf3 {[%clk 0:00:03]} 42... Ke7 {[%clk 0:00:20.6]} 43. Ke4
{[%clk 0:00:03.9]} 43... Kd6 {[%clk 0:00:20.4]} 44. Kd3 {[%clk 0:00:04.8]} 44...
f5 {[%clk 0:00:20.5]} 45. Kc4 {[%clk 0:00:05.7]} 45... Bb4 {[%clk 0:00:21]} 46.
Kb5 {[%clk 0:00:05.6]} 46... e5 {[%clk 0:00:20.9]} 47. fxe5+ {[%clk 0:00:05.3]}
47... Kxe5 {[%clk 0:00:21.8]} 48. h5 {[%clk 0:00:06.1]} 48... Ke4 {[%clk
0:00:21.8]} 49. Kc4 {[%clk 0:00:06.8]} 49... Kf3 {[%clk 0:00:22.3]} 50. Kd3
{[%clk 0:00:07.6]} 50... Kxg3 {[%clk 0:00:22.8]} 51. Ke2 {[%clk 0:00:08.5]}
51... Kg4 {[%clk 0:00:23.6]} 0-1

[Event "*** Titled Tuesday Blitz"]
[Site "Chess.com"]
[Date "2021.02.02"]
[Round "6"]
[White "fmshawnrl123"]
[Black "Smirnov_Pavel"]
[Result "0-1"]
[WhiteElo "2773"]
[BlackElo "2883"]
[TimeControl "180+1"]
[EndTime "11:09:09 PST"]
[Termination "Smirnov_Pavel won by resignation"]

1. e3 {[%clk 0:03:00.9]} 1... e6 {[%clk 0:02:58.9]} 2. Nf3 {[%clk 0:02:56.4]}
2... Nf6 {[%clk 0:02:58.8]} 3. Be2 {[%clk 0:02:54.9]} 3... d5 {[%clk 0:02:56.2]}
4. O-O {[%clk 0:02:55.1]} 4... Be7 {[%clk 0:02:55.7]} 5. c4 {[%clk 0:02:53.7]}
5... O-O {[%clk 0:02:56.6]} 6. Nc3 {[%clk 0:02:52.1]} 6... dxc4 {[%clk
0:02:52.7]} 7. Bxc4 {[%clk 0:02:51.9]} 7... c5 {[%clk 0:02:52.7]} 8. d4 {[%clk
0:02:51]} 8... cxd4 {[%clk 0:02:52.2]} 9. Nxd4 {[%clk 0:02:49.8]} 9... Nbd7
{[%clk 0:02:50.9]} 10. Qe2 {[%clk 0:02:44.5]} 10... Ne5 {[%clk 0:02:46.9]} 11.
Bb3 {[%clk 0:02:43.3]} 11... Bd7 {[%clk 0:02:47.4]} 12. Rd1 {[%clk 0:02:41.8]}
12... Qb6 {[%clk 0:02:45.3]} 13. Bd2 {[%clk 0:02:29.3]} 13... Rac8 {[%clk
0:02:44.2]} 14. Be1 {[%clk 0:02:25.5]} 14... Rfd8 {[%clk 0:02:43.5]} 15. Rac1
{[%clk 0:02:23.9]} 15... a6 {[%clk 0:02:36.5]} 16. f4 {[%clk 0:02:12.7]} 16...
Nc6 {[%clk 0:02:34.2]} 17. Bf2 {[%clk 0:02:11.7]} 17... Na5 {[%clk 0:02:23]} 18.
Bc2 {[%clk 0:02:06.6]} 18... Nc4 {[%clk 0:02:19.8]} 19. Rb1 {[%clk 0:01:51]}
19... Qc7 {[%clk 0:02:06.6]} 20. Ne4 {[%clk 0:01:10.8]} 20... Nd5 {[%clk
0:01:57.2]} 21. Bd3 {[%clk 0:00:58.1]} 21... b5 {[%clk 0:01:49.8]} 22. Rbc1
{[%clk 0:00:54.7]} 22... Qb7 {[%clk 0:01:47.2]} 23. b3 {[%clk 0:00:47.2]} 23...
Na3 {[%clk 0:01:41]} 24. Ng5 {[%clk 0:00:31.3]} 24... Bxg5 {[%clk 0:01:31.5]}
25. fxg5 {[%clk 0:00:32.2]} 25... Nc3 {[%clk 0:01:30.3]} 26. Qb2 {[%clk
0:00:17.8]} 26... Nxd1 {[%clk 0:01:25]} 27. Rxd1 {[%clk 0:00:18.7]} 27... b4
{[%clk 0:01:24.6]} 28. h4 {[%clk 0:00:15.2]} 28... e5 {[%clk 0:01:24.5]} 29. Ne2
{[%clk 0:00:04.6]} 29... Bf5 {[%clk 0:01:23.1]} 30. Bxf5 {[%clk 0:00:02.3]}
30... Rxd1+ {[%clk 0:01:22.7]} 31. Kh2 {[%clk 0:00:03.2]} 31... Re8 {[%clk
0:01:20.8]} 32. Ng3 {[%clk 0:00:03]} 32... Rdd8 {[%clk 0:01:08.7]} 33. Be4
{[%clk 0:00:03.4]} 33... Qd7 {[%clk 0:01:06.8]} 34. Qe2 {[%clk 0:00:03.6]} 34...
Qd1 {[%clk 0:01:05.1]} 35. Qxa6 {[%clk 0:00:03.3]} 35... Qg4 {[%clk 0:01:03.8]}
36. h5 {[%clk 0:00:02.4]} 36... Qxg5 {[%clk 0:01:01.4]} 37. h6 {[%clk
0:00:02.2]} 37... Qxh6+ {[%clk 0:00:59.5]} 38. Qxh6 {[%clk 0:00:02.8]} 38...
gxh6 {[%clk 0:01:00]} 39. Nf5 {[%clk 0:00:03.7]} 39... Rd2 {[%clk 0:00:59.6]}
40. Bh4 {[%clk 0:00:03.8]} 40... Re6 {[%clk 0:00:57.7]} 41. Bf3 {[%clk
0:00:02.2]} 41... Rxa2 {[%clk 0:00:55.8]} 42. Bd5 {[%clk 0:00:02.8]} 42... Rb2
{[%clk 0:00:44.9]} 43. e4 {[%clk 0:00:02.3]} 43... Nb5 {[%clk 0:00:41.2]} 44.
Be1 {[%clk 0:00:01.8]} 44... Nc3 {[%clk 0:00:37.4]} 45. Bc4 {[%clk 0:00:02.4]}
45... Kf8 {[%clk 0:00:34.5]} 46. Bg3 {[%clk 0:00:01.9]} 46... Nxe4 {[%clk
0:00:32.6]} 47. Be1 {[%clk 0:00:02.4]} 47... Nc3 {[%clk 0:00:32.7]} 48. Ne3
{[%clk 0:00:02.5]} 48... e4 {[%clk 0:00:31.1]} 49. Bxe6 {[%clk 0:00:02.2]} 49...
fxe6 {[%clk 0:00:30.8]} 50. Kg3 {[%clk 0:00:03.1]} 50... Rxb3 {[%clk 0:00:30.5]}
51. Kf4 {[%clk 0:00:03.8]} 51... Nd5+ {[%clk 0:00:30]} 52. Nxd5 {[%clk
0:00:03.1]} 52... exd5 {[%clk 0:00:30.9]} 0-1

[Event "*** Titled Tuesday Blitz"]
[Site "Chess.com"]
[Date "2021.02.02"]
[Round "6"]
[White "Chopper1905"]
[Black "RD4ever"]
[Result "1-0"]
[WhiteElo "2935"]
[BlackElo "2853"]
[TimeControl "180+1"]
[EndTime "11:09:12 PST"]
[Termination "Chopper1905 won on time"]

1. d4 {[%clk 0:03:00.9]} 1... Nf6 {[%clk 0:02:55.5]} 2. c4 {[%clk 0:03:01.1]}
2... g6 {[%clk 0:02:55.8]} 3. Nc3 {[%clk 0:03:01.1]} 3... Bg7 {[%clk 0:02:53.9]}
4. e4 {[%clk 0:03:01]} 4... O-O {[%clk 0:02:53.3]} 5. Be2 {[%clk 0:03:01.3]}
5... d6 {[%clk 0:02:53.2]} 6. Be3 {[%clk 0:02:59.6]} 6... e5 {[%clk 0:02:36.8]}
7. d5 {[%clk 0:02:59.4]} 7... Na6 {[%clk 0:02:33.9]} 8. g4 {[%clk 0:02:59.3]}
8... Nc5 {[%clk 0:02:34.1]} 9. f3 {[%clk 0:02:59.9]} 9... h5 {[%clk 0:02:34.5]}
10. g5 {[%clk 0:02:59.9]} 10... Nh7 {[%clk 0:02:34.3]} 11. h4 {[%clk 0:02:59.8]}
11... f6 {[%clk 0:02:34.7]} 12. gxf6 {[%clk 0:02:58]} 12... Bxf6 {[%clk
0:02:35.6]} 13. Bf2 {[%clk 0:02:58.4]} 13... Be7 {[%clk 0:02:36.1]} 14. Kd2
{[%clk 0:02:58.8]} 14... c6 {[%clk 0:02:36.1]} 15. Kc2 {[%clk 0:02:47.6]} 15...
cxd5 {[%clk 0:02:35.1]} 16. cxd5 {[%clk 0:02:44.8]} 16... Bd7 {[%clk 0:02:34.8]}
17. Rc1 {[%clk 0:02:31.9]} 17... b5 {[%clk 0:02:21]} 18. Bxc5 {[%clk 0:02:31.7]}
18... dxc5 {[%clk 0:02:20.8]} 19. Bxb5 {[%clk 0:02:29]} 19... Bxb5 {[%clk
0:02:09.1]} 20. Nxb5 {[%clk 0:02:29.9]} 20... Rb8 {[%clk 0:02:08.6]} 21. Nc3
{[%clk 0:02:00.5]} 21... Rf6 {[%clk 0:01:54.7]} 22. Kb1 {[%clk 0:01:57.5]} 22...
c4 {[%clk 0:01:25.2]} 23. Nh3 {[%clk 0:01:39.3]} 23... Bc5 {[%clk 0:01:17.6]}
24. f4 {[%clk 0:01:35.9]} 24... Bd4 {[%clk 0:01:11.7]} 25. Rh2 {[%clk
0:01:31.3]} 25... Qa5 {[%clk 0:01:06]} 26. Ka1 {[%clk 0:00:54]} 26... Rfb6
{[%clk 0:01:05.6]} 27. fxe5 {[%clk 0:00:48]} 27... Bxe5 {[%clk 0:01:06.5]} 28.
Rg2 {[%clk 0:00:32.6]} 28... Rxb2 {[%clk 0:00:59.7]} 29. Rxb2 {[%clk 0:00:32.6]}
29... Bxc3 {[%clk 0:00:58.7]} 30. Rxc3 {[%clk 0:00:29.2]} 30... Qxc3 {[%clk
0:00:59.6]} 31. Qd2 {[%clk 0:00:26.8]} 31... Qe5 {[%clk 0:00:34.6]} 32. Qh2
{[%clk 0:00:23.4]} 32... Re8 {[%clk 0:00:21.2]} 33. Qxe5 {[%clk 0:00:17]} 33...
Rxe5 {[%clk 0:00:22.1]} 34. d6 {[%clk 0:00:12.7]} 34... Re8 {[%clk 0:00:11.4]}
35. e5 {[%clk 0:00:12.4]} 35... Nf8 {[%clk 0:00:09]} 36. Re2 {[%clk 0:00:09.6]}
36... Ne6 {[%clk 0:00:05.6]} 37. Kb2 {[%clk 0:00:10]} 37... Nd4 {[%clk
0:00:05.3]} 38. Re4 {[%clk 0:00:09.7]} 38... Nb5 {[%clk 0:00:03.8]} 39. Ng5
{[%clk 0:00:09.1]} 39... c3+ {[%clk 0:00:04.1]} 40. Kc2 {[%clk 0:00:09.2]} 40...
Kg7 {[%clk 0:00:03.5]} 41. d7 {[%clk 0:00:08.7]} 1-0

[Event "*** Titled Tuesday Blitz"]
[Site "Chess.com"]
[Date "2021.02.02"]
[Round "6"]
[White "federicosellitti"]
[Black "kagg1125"]
[Result "1-0"]
[WhiteElo "2450"]
[BlackElo "2574"]
[TimeControl "180+1"]
[EndTime "11:09:12 PST"]
[Termination "federicosellitti won by resignation"]

1. e4 {[%clk 0:03:00.9]} 1... e5 {[%clk 0:02:59.8]} 2. Nc3 {[%clk 0:03:01.2]}
2... Nf6 {[%clk 0:02:59.3]} 3. f4 {[%clk 0:03:01.7]} 3... d5 {[%clk 0:02:58.5]}
4. fxe5 {[%clk 0:03:02.3]} 4... Nxe4 {[%clk 0:02:58.4]} 5. Qf3 {[%clk
0:03:02.8]} 5... Nxc3 {[%clk 0:02:56.6]} 6. dxc3 {[%clk 0:03:03.7]} 6... Be6
{[%clk 0:02:55.7]} 7. Qg3 {[%clk 0:03:03.2]} 7... c5 {[%clk 0:02:50.7]} 8. Nf3
{[%clk 0:03:00.4]} 8... Nc6 {[%clk 0:02:50.5]} 9. Bb5 {[%clk 0:02:58.1]} 9...
Qb6 {[%clk 0:02:45]} 10. Bxc6+ {[%clk 0:02:56]} 10... Qxc6 {[%clk 0:02:41.9]}
11. Bg5 {[%clk 0:02:56.3]} 11... h6 {[%clk 0:02:40.5]} 12. Be3 {[%clk
0:02:45.6]} 12... Qb5 {[%clk 0:02:37.7]} 13. O-O-O {[%clk 0:02:42]} 13... Qa6
{[%clk 0:02:27.1]} 14. a3 {[%clk 0:02:35.8]} 14... O-O-O {[%clk 0:02:19]} 15.
Rhf1 {[%clk 0:02:26.6]} 15... Qc6 {[%clk 0:02:15.3]} 16. Nh4 {[%clk 0:02:22.8]}
16... g6 {[%clk 0:02:14.8]} 17. Nf3 {[%clk 0:02:22]} 17... Bg7 {[%clk
0:02:10.1]} 18. Qf2 {[%clk 0:02:19.4]} 18... b6 {[%clk 0:02:08.5]} 19. Qe2
{[%clk 0:02:19.4]} 19... Kb7 {[%clk 0:02:07.3]} 20. Bf4 {[%clk 0:02:10.5]} 20...
Rhe8 {[%clk 0:02:05.6]} 21. Nd2 {[%clk 0:02:09]} 21... Bf5 {[%clk 0:01:56.8]}
22. g4 {[%clk 0:02:06.5]} 22... Bc8 {[%clk 0:01:53.1]} 23. h3 {[%clk 0:02:07.1]}
23... f6 {[%clk 0:01:49.9]} 24. Nf3 {[%clk 0:02:04.7]} 24... Re6 {[%clk
0:01:31]} 25. Qh2 {[%clk 0:02:00.7]} 25... Rde8 {[%clk 0:01:25.9]} 26. exf6
{[%clk 0:01:49.2]} 26... Bxf6 {[%clk 0:01:24]} 27. Bxh6 {[%clk 0:01:49.2]} 27...
Re2 {[%clk 0:01:20.2]} 28. Rf2 {[%clk 0:01:46.9]} 28... Qb5 {[%clk 0:01:08.9]}
29. Rd3 {[%clk 0:01:25.2]} 29... Rxf2 {[%clk 0:00:52.1]} 30. Qxf2 {[%clk
0:01:26.1]} 30... Qc6 {[%clk 0:00:52.3]} 31. Bg5 {[%clk 0:01:19.9]} 31... Bg7
{[%clk 0:00:51.3]} 32. Qg3 {[%clk 0:01:18.3]} 32... Re4 {[%clk 0:00:44.9]} 33.
Re3 {[%clk 0:01:13.8]} 33... Qe6 {[%clk 0:00:39.2]} 34. Rxe4 {[%clk 0:01:10.7]}
34... dxe4 {[%clk 0:00:40.1]} 35. Nd2 {[%clk 0:01:08.9]} 35... Bd7 {[%clk
0:00:39.9]} 36. Qe3 {[%clk 0:01:04]} 36... Bc6 {[%clk 0:00:39.9]} 37. Bf4 {[%clk
0:00:56]} 37... c4 {[%clk 0:00:35.5]} 38. Bg3 {[%clk 0:00:49.9]} 38... Bf8
{[%clk 0:00:33.8]} 39. Kb1 {[%clk 0:00:49]} 39... Bc5 {[%clk 0:00:33.4]} 40. Qf4
{[%clk 0:00:46.8]} 40... Bd5 {[%clk 0:00:28.6]} 41. h4 {[%clk 0:00:34.2]} 41...
e3 {[%clk 0:00:28.4]} 42. Nf3 {[%clk 0:00:34.9]} 42... Qe4 {[%clk 0:00:23.4]}
43. Qxe4 {[%clk 0:00:32.2]} 43... Bxe4 {[%clk 0:00:24.3]} 44. Ng1 {[%clk
0:00:32.8]} 44... Kc6 {[%clk 0:00:20.3]} 45. Kc1 {[%clk 0:00:30.9]} 45... Bd6
{[%clk 0:00:19]} 46. Bxd6 {[%clk 0:00:28.1]} 46... Kxd6 {[%clk 0:00:19.9]} 47.
h5 {[%clk 0:00:29]} 47... g5 {[%clk 0:00:17.7]} 48. Nh3 {[%clk 0:00:27.4]} 48...
Bf3 {[%clk 0:00:13.5]} 49. h6 {[%clk 0:00:25.6]} 49... Be4 {[%clk 0:00:08.2]}
50. Nxg5 {[%clk 0:00:25.9]} 50... Bg6 {[%clk 0:00:08.9]} 51. h7 {[%clk
0:00:25.7]} 51... Bxh7 {[%clk 0:00:09.4]} 52. Nxh7 {[%clk 0:00:26.6]} 52... Ke5
{[%clk 0:00:10]} 53. Kd1 {[%clk 0:00:26.7]} 1-0

[Event "*** Titled Tuesday Blitz"]
[Site "Chess.com"]
[Date "2021.02.02"]
[Round "6"]
[White "MasterSonnevanck23"]
[Black "politeplayer"]
[Result "1-0"]
[WhiteElo "2376"]
[BlackElo "2196"]
[TimeControl "180+1"]
[EndTime "11:09:13 PST"]
[Termination "MasterSonnevanck23 won by resignation"]

1. d4 {[%clk 0:03:00.9]} 1... Nf6 {[%clk 0:02:58.3]} 2. c4 {[%clk 0:03:00.6]}
2... c5 {[%clk 0:02:58.5]} 3. d5 {[%clk 0:02:59.8]} 3... e6 {[%clk 0:02:58.9]}
4. Nc3 {[%clk 0:02:58.8]} 4... exd5 {[%clk 0:02:58.5]} 5. cxd5 {[%clk
0:02:55.9]} 5... d6 {[%clk 0:02:58.7]} 6. e4 {[%clk 0:02:56.3]} 6... g6 {[%clk
0:02:58.6]} 7. Bd3 {[%clk 0:02:56.3]} 7... Bg7 {[%clk 0:02:58.5]} 8. h3 {[%clk
0:02:56.5]} 8... O-O {[%clk 0:02:58.9]} 9. Bg5 {[%clk 0:02:55.3]} 9... h6 {[%clk
0:02:48.5]} 10. Be3 {[%clk 0:02:53.5]} 10... Re8 {[%clk 0:02:42.4]} 11. Nf3
{[%clk 0:02:52.5]} 11... a6 {[%clk 0:02:36.5]} 12. a4 {[%clk 0:02:50.8]} 12...
c4 {[%clk 0:02:36.6]} 13. Bc2 {[%clk 0:02:43.2]} 13... Nbd7 {[%clk 0:02:33.8]}
14. O-O {[%clk 0:02:41.4]} 14... Rb8 {[%clk 0:02:30]} 15. Qd2 {[%clk 0:02:34.9]}
15... h5 {[%clk 0:02:21.6]} 16. Bg5 {[%clk 0:02:11.7]} 16... b5 {[%clk
0:02:14.9]} 17. axb5 {[%clk 0:02:10.7]} 17... axb5 {[%clk 0:02:14.9]} 18. Nd4
{[%clk 0:02:09.9]} 18... b4 {[%clk 0:01:56]} 19. Nd1 {[%clk 0:01:54.7]} 19...
Qc7 {[%clk 0:01:44.7]} 20. Nc6 {[%clk 0:01:51]} 20... b3 {[%clk 0:01:38.9]} 21.
Bb1 {[%clk 0:01:47.8]} 21... Rb7 {[%clk 0:01:28.6]} 22. Nc3 {[%clk 0:01:47.4]}
22... Nc5 {[%clk 0:01:24.5]} 23. Re1 {[%clk 0:01:41.1]} 23... Bd7 {[%clk
0:01:20.5]} 24. e5 {[%clk 0:01:13.3]} 24... dxe5 {[%clk 0:01:15.9]} 25. Bxf6
{[%clk 0:01:05]} 25... Bxf6 {[%clk 0:01:13.5]} 26. Ne4 {[%clk 0:01:05.1]} 26...
Nxe4 {[%clk 0:01:09.6]} 27. Bxe4 {[%clk 0:01:04.4]} 27... Rb6 {[%clk 0:00:55.3]}
28. Ra7 {[%clk 0:00:56.9]} 28... Qd6 {[%clk 0:00:44.7]} 29. Qc3 {[%clk 0:00:46]}
29... Bg7 {[%clk 0:00:38.6]} 30. Qxc4 {[%clk 0:00:41.9]} 30... f5 {[%clk
0:00:35.9]} 31. Bf3 {[%clk 0:00:34.3]} 31... e4 {[%clk 0:00:35.5]} 32. Bd1
{[%clk 0:00:33.6]} 32... Bxb2 {[%clk 0:00:30.8]} 33. Bxb3 {[%clk 0:00:31.9]}
33... Bg7 {[%clk 0:00:23.5]} 34. Ba2 {[%clk 0:00:31.3]} 34... Rc8 {[%clk
0:00:20.6]} 35. Rb1 {[%clk 0:00:21.9]} 35... Rxb1+ {[%clk 0:00:18.3]} 36. Bxb1
{[%clk 0:00:21.8]} 36... Bxc6 {[%clk 0:00:18.1]} 37. dxc6+ {[%clk 0:00:20.6]}
37... Kh8 {[%clk 0:00:17.7]} 38. Qf7 {[%clk 0:00:17.8]} 38... Qd1+ {[%clk
0:00:15.4]} 39. Kh2 {[%clk 0:00:17.1]} 39... Qd6+ {[%clk 0:00:14.4]} 40. g3
{[%clk 0:00:14.1]} 40... Qd4 {[%clk 0:00:14.4]} 41. Kg2 {[%clk 0:00:11.7]} 41...
Rf8 {[%clk 0:00:10.5]} 42. Qxg6 {[%clk 0:00:11.3]} 42... f4 {[%clk 0:00:09.9]}
43. Qxh5+ {[%clk 0:00:10.8]} 43... Kg8 {[%clk 0:00:09.4]} 44. Ba2+ {[%clk
0:00:10.8]} 44... Rf7 {[%clk 0:00:09.7]} 45. Qxf7+ {[%clk 0:00:10.7]} 45... Kh8
{[%clk 0:00:10.1]} 46. Qh5+ {[%clk 0:00:10.5]} 1-0

[Event "*** Titled Tuesday Blitz"]
[Site "Chess.com"]
[Date "2021.02.02"]
[Round "6"]
[White "MarcoRiehle"]
[Black "tigra"]
[Result "1-0"]
[WhiteElo "2709"]
[BlackElo "2854"]
[TimeControl "180+1"]
[EndTime "11:09:14 PST"]
[Termination "MarcoRiehle won by checkmate"]

1. e4 {[%clk 0:03:00.9]} 1... e6 {[%clk 0:02:55.6]} 2. d4 {[%clk 0:02:58.3]}
2... d5 {[%clk 0:02:56.5]} 3. exd5 {[%clk 0:02:59.2]} 3... exd5 {[%clk
0:02:56.2]} 4. Nf3 {[%clk 0:02:59.7]} 4... Bf5 {[%clk 0:02:52.4]} 5. c4 {[%clk
0:02:55.7]} 5... Bxb1 {[%clk 0:02:47.7]} 6. Rxb1 {[%clk 0:02:54.2]} 6... Bb4+
{[%clk 0:02:46.9]} 7. Bd2 {[%clk 0:02:53.2]} 7... Bxd2+ {[%clk 0:02:44.5]} 8.
Qxd2 {[%clk 0:02:54.1]} 8... Nf6 {[%clk 0:02:44.4]} 9. c5 {[%clk 0:02:49.9]}
9... O-O {[%clk 0:02:40.7]} 10. Be2 {[%clk 0:02:49.6]} 10... b6 {[%clk
0:02:38.8]} 11. O-O {[%clk 0:02:44.1]} 11... bxc5 {[%clk 0:02:35.6]} 12. dxc5
{[%clk 0:02:45]} 12... a5 {[%clk 0:02:33.2]} 13. Nd4 {[%clk 0:02:41.7]} 13... c6
{[%clk 0:02:25.5]} 14. a3 {[%clk 0:02:30.9]} 14... Ne4 {[%clk 0:02:22.4]} 15.
Qc2 {[%clk 0:02:23.9]} 15... Qf6 {[%clk 0:02:21.5]} 16. Rfd1 {[%clk 0:02:13.8]}
16... Qxf2+ {[%clk 0:02:19.4]} 17. Kh1 {[%clk 0:02:13.9]} 17... Qe3 {[%clk
0:02:16.4]} 18. g3 {[%clk 0:01:54.7]} 18... Nf2+ {[%clk 0:02:14.5]} 19. Kg2
{[%clk 0:01:53.6]} 19... Nxd1 {[%clk 0:02:15.4]} 20. Rxd1 {[%clk 0:01:53.6]}
20... a4 {[%clk 0:02:14.1]} 21. Bf3 {[%clk 0:01:44.1]} 21... g6 {[%clk
0:02:12.1]} 22. Qc3 {[%clk 0:01:36.6]} 22... Qe7 {[%clk 0:02:09.6]} 23. Re1
{[%clk 0:01:33.8]} 23... Qf6 {[%clk 0:02:08.7]} 24. Rf1 {[%clk 0:01:29.7]} 24...
Qg7 {[%clk 0:02:05.1]} 25. Re1 {[%clk 0:01:25.1]} 25... Ra7 {[%clk 0:02:04.3]}
26. h4 {[%clk 0:01:05.4]} 26... h5 {[%clk 0:02:02.5]} 27. Qb4 {[%clk 0:00:51]}
27... Na6 {[%clk 0:01:55.3]} 28. Qxa4 {[%clk 0:00:50.4]} 28... Raa8 {[%clk
0:01:48.8]} 29. Nxc6 {[%clk 0:00:41.6]} 29... Qxb2+ {[%clk 0:01:47.7]} 30. Re2
{[%clk 0:00:41.3]} 30... Qc1 {[%clk 0:01:38]} 31. Ne7+ {[%clk 0:00:39.1]} 31...
Kh7 {[%clk 0:01:37.6]} 32. c6 {[%clk 0:00:36.6]} 32... Nc7 {[%clk 0:01:34.2]}
33. Qd4 {[%clk 0:00:27.8]} 33... Rxa3 {[%clk 0:01:32.7]} 34. Qe5 {[%clk
0:00:26.6]} 34... Ra1 {[%clk 0:01:01.9]} 35. Kh2 {[%clk 0:00:16.3]} 35... Qf1
{[%clk 0:00:45.4]} 36. Bg2 {[%clk 0:00:14.3]} 36... Qg1+ {[%clk 0:00:35.5]} 37.
Kh3 {[%clk 0:00:14.5]} 37... Ra7 {[%clk 0:00:30]} 38. Qf6 {[%clk 0:00:13.5]}
38... Ne8 {[%clk 0:00:23.6]} 39. Qg5 {[%clk 0:00:13.4]} 39... d4 {[%clk
0:00:17.7]} 40. Qc5 {[%clk 0:00:11.3]} 40... Qa1 {[%clk 0:00:09.7]} 41. Nxg6
{[%clk 0:00:10.7]} 41... Rg8 {[%clk 0:00:09.4]} 42. Nf8+ {[%clk 0:00:10.1]}
42... Kg7 {[%clk 0:00:08.8]} 43. Rxe8 {[%clk 0:00:09.6]} 43... Qd1 {[%clk
0:00:06.2]} 44. Qg5+ {[%clk 0:00:09.4]} 44... Kh8 {[%clk 0:00:05.9]} 45. Qh6#
{[%clk 0:00:09.4]} 1-0